Cogmind - Beta 13 @@@ ROGUE MODE // 2024.04.28 @ 08:48:52 Player: Pogmind Result: Destroyed by GW-6H6(R) with Subdweller Beam Cannon Performance ------------- Evolutions (0) 0 Regions Visited (2) 400 Robots Destroyed (27) 135 Value Destroyed (431) 431 Prototype IDs (11) 220 Alien Tech Used (0) 0 Bonus (-80) -80 TOTAL SCORE: 1106 Bonus ------- Friendly Fire -80 Cogmind --------- Core Integrity 0/250 Matter 300/300 Energy 100/100 System Corruption 0% Temperature Cool (33) Movement Core (50) Location -10/Subcaves Parts ------- > --- POWER (1) -------- (None) > --- PROPULSION (2) --- (None) > --- UTILITY (2) ------ (None) > --- WEAPON (2) ------- Hammer > --- INVENTORY (5) ---- Light Treads Light Treads Beam Cannon Beam Cannon Battle Rifle Peak State ------------ > --- POWER ------------ Ion Engine > --- PROPULSION ------- Light Treads Wheel > --- UTILITY ---------- Large Storage Unit Seismic Detector > --- WEAPON ----------- Improved Medium Laser Shotgun > --- INVENTORY -------- Ion Engine Compact Wheel Improved Heat Sink Medium Matter Pod Core Shielding Core Shielding Core Shielding Weapon Shielding Beam Cannon Assault Rifle Shotgun Shotgun Shotgun Shotgun [Rating: 12] Favorites ----------- Power Ion Engine Engine Ion Engine Propulsion Light Treads Treads Light Treads Wheel Wheel Utility Large Storage Unit Device Seismic Detector Storage Large Storage Unit Protection Scrap Shield Weapon Assault Rifle Energy Gun Medium Laser Energy Cannon Beam Cannon Ballistic Gun Assault Rifle Impact Weapon Hammer Slashing Weapon Mining Claw Build | -11 -10 -10 ------- Run | Yrd Mat Sub Slots Evolved . | . . . Power . | . . . Propulsion . | . . . Utility . | . . . Weapon . | . . . Parts Attached 35 | 7 23 5 Power 3 | 1 2 . Engine 3 | 1 2 . Core . | . . . Reactor . | . . . Propulsion 6 | 2 4 . Treads 5 | 2 3 . Leg . | . . . Wheel 1 | . 1 . Hover . | . . . Flight . | . . . Utility 9 | 2 5 2 Device 5 | 1 3 1 Storage 2 | 1 1 . Processor . | . . . Hackware . | . . . Protection 2 | . 1 1 Artifact . | . . . Weapon 17 | 2 12 3 Energy Gun 2 | 1 1 . Energy Cannon 3 | . 2 1 Ballistic Gun 8 | 1 7 . Ballistic Cannon . | . . . Launcher . | . . . Special Weapon . | . . . Impact Weapon 2 | . . 2 Slashing Weapon 2 | . 2 . Piercing Weapon . | . . . Special Melee Weapon . | . . . Unidentified Prototypes 1 | . 1 . Parts Lost 6 | . 1 5 Power 1 | . . 1 Propulsion 3 | . 1 2 Utility 1 | . . 1 Weapon 1 | . . 1 Highest Loss Streak 5 | . 1 5 To Critical Strikes . | . . . Average Slot Usage (%) 98 | . 99 84 Engine 13 | . 13 14 Treads 26 | . 25 27 Wheel 1 | . 1 . Device 12 | . 13 . Storage 12 | . 14 . Protection 1 | . . 12 Energy Gun 4 | . 5 . Energy Cannon 5 | . 4 21 Ballistic Gun 12 | . 14 . Slashing Weapon 4 | . 4 . Naked Turns . | . . . Heaviest Build 32 | 15 32 29 Greatest Support 40 | 40 40 40 Greatest Overweight (x) 3 | . 3 . Average Overweight (x) . | . . . Largest Inventory Capacity 15 | 8 15 15 Average Capacity 13 | 7 14 5 Most Carried 15 | 5 15 15 Average Carried 12 | 3 13 5 Final Capacity 15 | 8 15 5 Final Carried 15 | 5 15 5 Class Distribution -------------------- 100% | Mutant Dominant Class ---------------- Mutant | -10/Materials Mutant | -10/Subcaves Resources | -11 -10 -10 ----------- Run | Yrd Mat Sub Matter Collected 889 | 287 572 30 Remotely . | . . . Salvage Created 856 | 119 737 . Parts 63 | 6 57 . Haulers Intercepted 2 | . 2 . Recyclers Shooed 3 | . 3 . Parts Field Recycled . | . . . Retrieved Matter . | . . . Parts Self-Destructed 1 | . . 1 Prevented . | . . . Kills | -11 -10 -10 ------- Run | Yrd Mat Sub Combat Hostiles Destroyed 13 | . 13 . Guns 13 | . 13 . Classes Destroyed 8 | 2 6 . Builder 1 | . 1 . Tunneler 1 | 1 . . Hauler 2 | . 2 . Recycler 4 | 1 3 . Operator 3 | . 3 . Watcher 3 | . 3 . Swarmer 6 | . 6 . Grunt 7 | . 7 . Best Kill Streak 3 | 1 3 . Combat Bots Only 3 | . 3 . Max Kills in Single Turn 2 | 1 2 . Gunslinging 1 | . 1 . Exploded . | . . . Melee . | . . . Uniques/NPCs Destroyed . | . . . Combat | -11 -10 -10 -------- Run | Yrd Mat Sub Hostile Shots Fired 77 | . 46 31 Missed 16 | . 13 3 Damage Taken 1115 | . 355 760 Core 266 | . 46 220 Absorbed by Shields . | . . . Redirected to Shielding 1 | . 1 . Regen/Repaired (Parts) 131 | . 131 . Core Remaining (%) 100 | 100 . . Volleys Fired 62 | 9 47 6 Largest 2 | 2 2 2 Hottest 120 | 70 70 120 Shots Fired 115 | 18 87 10 Gun 105 | 18 87 . Cannon 10 | . . 10 Launcher . | . . . Special . | . . . Kinetic 81 | 9 72 . Thermal 34 | 9 15 10 Explosive . | . . . Electromagnetic . | . . . Robot Hit Streak 9 | 5 8 9 Robot Miss Streak 3 | 2 3 . Penetration Max . | . . . Secondary Targets 1 | . 1 . Max Gunslinging Chain 1 | . 1 . Shots Hit Robots 108 | 11 86 11 Core Hits 44 | 3 40 1 Critical Kills . | . . . Critical Parts Destroyed 2 | . 1 1 Critical Strikes 3 | . 1 2 Destroy 1 | . 1 . Smash 2 | . . 2 Melee Attacks 31 | . 23 8 Impact 8 | . . 8 Slashing 23 | . 23 . Piercing . | . . . Sneak Attacks 9 | . 9 . Combat Hostiles . | . . . Follow-up Attacks . | . . . Damage Inflicted 1986 | 133 1650 203 Guns 1166 | 133 1033 . Cannons 141 | . . 141 Explosions . | . . . Melee 635 | . 573 62 Ramming 44 | . 44 . Kinetic 953 | 70 883 . Thermal 354 | 63 150 141 Explosive . | . . . Electromagnetic . | . . . Impact 62 | . . 62 Slashing 573 | . 573 . Piercing . | . . . Highest Corruption . | . . . Average Corruption . | . . . Corruption Purged . | . . . Corruption Blocked . | . . . Overload Shots . | . . . Overflow Damage 59 | . 35 24 Projectiles . | . . . Explosions . | . . . Melee 59 | . 35 24 Knockbacks 1 | . . 1 Impact 1 | . . 1 Kinetic . | . . . Secondary . | . . . Self-Inflicted Damage 5 | . 5 . Shots . | . . . Rammed 9 | . 9 . Targets Rammed 9 | . 9 . Kicked . | . . . Crushed . | . . . Highest Temperature 611 | 54 90 611 Average Temperature 78 | 23 26 239 Received Heat Transfer 929 | . 129 800 Effects 7 | . . 7 Interference 1 | . . 1 Damage (minor) 1 | . . 1 Damage (major) 4 | . . 4 Damage (core) 1 | . . 1 Siege Activations . | . . . Robots Corrupted . | . . . Combat Hostiles . | . . . Parts Fried . | . . . Impact Corruptions 1 | . . 1 Robots Melted . | . . . Combat Hostiles . | . . . Parts Melted . | . . . Heat Transferred 925 | 185 444 296 Parts Sabotaged . | . . . Parts Stolen . | . . . Parts Stripped . | . . . Power Chain Reactions . | . . . Alert | -11 -10 -10 ------- Run | Yrd Mat Sub Peak Influence 256 | 10 256 . Initial 6 | . 6 . Average 130 | 2 135 . Maximum Alert Level 1 | . 1 . Low Security (%) 56 | 100 55 . Level 1 43 | . 44 . Level 2 . | . . . Level 3 . | . . . Level 4 . | . . . Level 5 . | . . . High Security . | . . . Max Security . | . . . Squads Dispatched 4 | . 4 . Investigation 2 | . 2 . Extermination . | . . . Reinforcement 2 | . 2 . Assault . | . . . Garrison . | . . . Intercept . | . . . Searches Triggered . | . . . Construction Impeded . | . . . Haulers Reinforced . | . . . Active Scanning Responses . | . . . Cargo Convoy Interrupts . | . . . Stealth | -11 -10 -10 --------- Run | Yrd Mat Sub Distress Signals 3 | . 3 . Communications Jammed . | . . . Distress Signals . | . . . Times Spotted 37 | . 35 2 Peak Tracking Total 3 | . 3 2 Tactical Retreats 2 | . 2 . Traps | -11 -10 -10 ------- Run | Yrd Mat Sub Traps Triggered 1 | . . 1 Indirectly . | . . . Trap Hack Attempts . | . . . Triggered . | . . . Disarmed . | . . . Reprogrammed . | . . . Reused . | . . . Traps Extracted . | . . . Installed . | . . . Triggered . | . . . Machines | -11 -10 -10 ---------- Run | Yrd Mat Sub Machines Disabled . | . . . Max in Single Turn . | . . . Machines Repaired . | . . . Machines Dismantled . | . . . Machines Sabotaged . | . . . Overloaded Fab Kills . | . . . Hacking | -11 -10 -10 --------- Run | Yrd Mat Sub Machines Accessed 9 | . 8 1 Terminals 5 | . 5 . Fabricators . | . . . Repair Stations 1 | . 1 . Recycling Units 2 | . 2 . Scanalyzers . | . . . Garrison Access . | . . . Total Hacks 33 | . 24 9 Successful 24 | . 15 9 Failed 9 | . 9 . Catastrophic . | . . . Database Lockouts . | . . . Manual 18 | . 18 . Terminals 15 | . 15 . Fabricators . | . . . Repair Stations 6 | . 6 . Recycling Units 3 | . 3 . Scanalyzers . | . . . Garrison Access . | . . . Terminal Hacks 12 | . 3 9 Record 8 | . . 8 Part Schematic 1 | . 1 . Robot Analysis 1 | . 1 . Locate Traps 1 | . 1 . Derelict Proto ID Bank 1 | . . 1 Fabricator Hacks . | . . . Repair Station Hacks 5 | . 5 . Scan Component 3 | . 3 . Repair 2 | . 2 . Recycling Unit Hacks . | . . . Scanalyzer . | . . . Garrison Access Hacks . | . . . Unauthorized Hacks 7 | . 7 . Terminals 5 | . 5 . Assimilate 2 | . 2 . Botnet 2 | . 2 . Operators 1 | . 1 . Fabricators . | . . . Repair Stations . | . . . Recycling Units 2 | . 2 . Tunnel 2 | . 2 . Scanalyzers . | . . . Garrison Access . | . . . Data Cores Recovered . | . . . Used . | . . . Hacking Detections 7 | . 7 . Full Trace Events 1 | . 1 . Feedback Events . | . . . Feedback Blocked . | . . . Robot Schematics Acquired . | . . . Robots Built . | . . . Authchips . | . . . Time . | . . . Total Robot Build Rating . | . . . Part Schematics Acquired 1 | . 1 . Parts Built . | . . . Authchips . | . . . Time . | . . . Total Part Build Rating . | . . . Parts Repaired 2 | . 2 . Time 52 | . 52 . Parts Recycled . | . . . Recycled Matter . | . . . Retrieved Matter . | . . . Retrieved Components . | . . . Parts Scanalyzed . | . . . Part Schematics Acquired . | . . . Parts Damaged . | . . . Bothacking | -11 -10 -10 ------------ Run | Yrd Mat Sub Used RIF Installer . | . . . Robots Hacked . | . . . Non-combat . | . . . Combat . | . . . Robot Hacks Applied . | . . . Relay Couplers Released . | . . . Fabnet Peak Effective % . | . . . Robots Rewired . | . . . Allies Hacked . | . . . Hacks Repelled . | . . . Allies | -11 -10 -10 -------- Run | Yrd Mat Sub Total Allies 1 | . 1 . Largest Group 1 | . 1 . Highest-Rated Group 10 | . 10 . Highest-Rated Ally 10 | . 10 . Total Orders . | . . . Ally Attacks . | . . . Total Damage . | . . . Kills . | . . . Allies Corrupted . | . . . Allies Melted . | . . . Intel | -11 -10 -10 ------- Run | Yrd Mat Sub Robot Analysis Total 1 | . 1 . Derelict Logs Recovered . | . . . Drone Launches . | . . . Drone Recoveries . | . . . Exploration | -11 -10 -10 ------------- Run | Yrd Mat Sub Turns Passed 4725 | 133 4184 408 Spaces Moved 1756 | 56 1492 208 Core 1 | 1 . . Treads 1367 | 55 1104 208 Legs . | . . . Wheels 388 | . 388 . Hover . | . . . Flight . | . . . Fastest Speed 50 | 50 110 160 Average Speed 151 | 158 150 160 Slowest Speed 160 | 160 160 160 Overloaded Moves . | . . . Propulsion Burnouts . | . . . Robots Hopped . | . . . Cave-ins Triggered . | . . . Exploration Rate (%) 38 | 4 99 12 Regions Visited 2 Branch Regions 1 Pre-discovered Areas 2 | . 2 . Known Exits Taken . | . . . Unknown Exits Taken 2 | 1 1 . Scrap Searched 2 | . . 2 Spaces Dug 1 | . 1 . Terrain Destroyed 1 | . 1 . Melee 1 | . 1 . Projectile . | . . . AOE . | . . . Terrain Rammed . | . . . Walls Destroyed . | . . . Machines Disabled . | . . . Actions | -11 -10 -10 --------- Run | Yrd Mat Sub Total 3641 | 79 3298 264 Wait 1670 | 3 1649 18 Move 1754 | 55 1491 208 Hop . | . . . Pick Up 37 | 5 29 3 Fast Attach 14 | 7 6 1 Attach 4 | . 4 . Detach 4 | . 3 1 Swap 17 | . 13 4 Drop 39 | . 24 15 Fire 62 | 9 47 6 Melee 31 | . 23 8 Ram 1 | . 1 . Kick . | . . . Crush 8 | . 8 . Escape Stasis . | . . . Rewire . | . . . Trap . | . . . Miscellaneous . | . . . Route ------- -11/Scrapyard -10/Materials (discovered 5 exits: [*Mat x3] / [*Min] / *Sub) -10/Subcaves History --------- Turn | Location | Event 10 | -11/Scrapyard | Discovered new exit (range 15) 134 | -11/Scrapyard | Entered Materials 315 | -10/Materials | Build established: Mutant 472 | -10/Materials | Discovered new exit (range 6) 1939 | -10/Materials | Discovered new exit (range 9) 2102 | -10/Materials | Discovered new exit (range 7) 2689 | -10/Materials | Discovered new exit (range 9) 2779 | -10/Materials | Discovered new exit (range 9) 3194 | -10/Materials | Repaired Lgt. Treads 4210 | -10/Materials | Repaired Lgt. Treads 4318 | -10/Materials | Entered Subcaves 4421 | -10/Subcaves | Shifting Twisted Machinery released Mak. System Shield 4422 | -10/Subcaves | Shifting Twisted Machinery released Sub. Power Source 4505 | -10/Subcaves | Visited 4L-MR0's lab 4711 | -10/Subcaves | Core integrity fell below 50% 4725 | -10/Subcaves | Core integrity fell below 20% 4726 | -10/Subcaves | Destroyed by GW-6H6(R) with Subdweller Beam Cannon Last Messages --------------- 04704_ Critical hit (Meltdown: +290). 04706_ Lgt. Treads destroyed. 04708_ Overheating: System interference. 04708_ Beam Cannon temporarily disabled. 04708_ Critical hit (Meltdown: +300). 04709_ Overheating: Beam Cannon damaged (-15). 04710_ Overheating: Hammer damaged (-35). 04710_ Overheating: Beam Cannon damaged (-14). 04710_ Overheating: Lgt. Treads damaged (-40). 04710_ Overheating: Ion Engine damaged (-2). 04711_ Overheating: Core damaged (-47). 04717_ FX-HIQ(R) suffers critical hit (Smash). 04717_ Destroyed Sub. Optics. 04717_ FX-HIQ(R) system corrupted by crushing effect. 04720_ FX-HIQ(R) suffers critical hit (Smash). 04720_ FX-HIQ(R) knocked back. 04722_ Beam Cannon destroyed. 04726_ FX-HIQ(R) IFF system glitched. 04726_ Lgt. Treads destroyed. 04726_ Ion Engine destroyed. Map ----- +----------------------------------------------------+ | ????????????????#### + "#?????????????????? | | ????????????????#"###########" #?????????????????? | | ????????????????#%####???#### #?????????????????? | | ????????????????# "#####" %="#?????????????????? | | ????????????????##! # ! #?????????????????? | | ?????????######??#""## "##?????????????????? | | #######?## #######" ##" ##??????????????????? | | ### ####" "#######?????????????????? | | ## " ### #?????????????????? | | ## ###???????????????? | | ### ####### ###?????????????? | | #?### ##??# #????#####????? | | #???## #### ###?## #????? | | #????## ## ### #????? | | ??????## #### # #????? | | ???????#####??# ## ## ##???? | | ??????????????# ## ### ## ##??? | | ??????????????#" ## #### #??? | | ?????????????##"" ### ### #??? | | ?????????????# """" ## ### #??? | | ?????????????# *"! " ##??# #??? | | ?????????????## " ## ##???# ##??? | | ??????????????##" #### ##??## ## ##???? | | ??????????????#" # ## #### ####????? | | ??????????????#" ### ## #???????? | | ??????????????#" #?# @ ##??????? | | ??????????????#" "### RR## #??????? | | ??????????????## """ ### #??????? | | ???????????????## "" ## ## ###??????? | | ????????????????## ## ## ##????????? | | ?????????????????# ######## ##?????????? | | ?????????????????####??????## ##??????????? | | ????????????????????????????# ##???????????? | | ????????????????????????????# ##????????????? | | ????????????????????????????## #?????????????? | | ?????????????????????????????# ?????????????? | | ?????????????????????????????## ?????????????? | | ??????????????????????????????## ?????????????? | | ???????????????????????????????## ????????????? | | ????????????????????????????????# ????????????? | | ????????????????????????????????# " #????????????? | | ????????????????????????????????? ##????????????? | | ?????????????????????????????????? ??????????????? | | ?????????????????????????????????????????????????? | | ?????????????????????????????????????????????????? | | ?????????????????????????????????????????????????? | | ?????????????????????????????????????????????????? | | ?????????????????????????????????????????????????? | | ?????????????????????????????????????????????????? | | ?????????????????????????????????????????????????? | +----------------------------------------------------+ Best States ------------- Heat Dissipation 25 Coolant Potential 50 Energy Generation 10 Energy Capacity 250 Matter Stores 300 Matter Capacity 300 Sight Range 16 Terrain Scan Density 10 Armor Coverage 800 Core Shielding 20 Evasion (%) 40 Recoil Reduction 2 Item Schematics ----------------- Cargo Storage Unit | -10/Materials | Hacked Robot Schematics ------------------ None Fabricated ------------ Nothing Alien Tech Used ----------------- None Achievements -------------- None Challenges ------------ None Game ------ Seed MobileNetworkSaw Manual? 0 Play Time 00:26:26 Cumulative 718.0 hours Start 2024.04.28 @ 08:22:47 End 2024.04.28 @ 08:48:52 Sessions 1 Manual Loads 0 Difficulty Rogue Special Mode None Game No. 85 Rogue 70 Adventurer 5 Explorer 10 Win Type - Total 28 Types 6/7/6/0/3/1/4/0/1 Lore% 86 Gallery% 94 Achievement% 85 Wizard Run 0 Options --------- Layout 0 ASCII 0 Keyboard 1 Movement Arrows Keybinds 0 Fullscreen 2 Font 18/SmallcapsGlow Map View 76x50 Zoom Use 0% Tactical HUD 1 Map Filters NONE Filters NONE Steam X RUN: d1655c3e-f4b0-4165-aaed-c7fdf641e2a5